Workbook

Sheet اهداء
Z1: nnn
C6: السلام عليكم ورحمة الله وبركاته
D7: وبعد:
C8: تكتب إهداءك هنا

Sheet tableau de scolarité
A1: المملكة المغربية | J1: العام الدراسي | M1: 2019_2018 | P1: المواد غير المعممة | T1: 0 | U1: ذ
A2: وزارة التربية الوطنية و التكوين المهني | J2: الاستاذ(ة) | M2: اسمك هنا | P2: الامازيغية | T2: 1 | U2: أ | V2: مك
A3: الاكاديمية الجهوية للتربية و التكوين | J3: المستوى | M3: الاول | P3: 0
A4: جهة: اسم الجهة هنا | J4: الوحدة المدرسية | M4: اسم الوحدة هنا
A5: مديرية: اسم المديرية هنا | J5: الفوج | M5: 1
A6: المؤسسة: اسم المؤسسة هنا | J6: عدد التلاميذ | M6: =O10+O11 -> 24
L8: احصائيات
M9: جدد | N9: مك | O9: مجموع
L10: ذكور | M10: =COUNTIFS($E$16:$E$39,"",$D$16:$D$39,"ذ") -> 7 | N10: =COUNTIFS($E$16:$E$39,"مك",$D$16:$D$39,"ذ") -> 3 | O10: =IF($A16="","",SUM(M10+N10)) -> 10
L11: اناث | M11: =COUNTIFS($E$16:$E$39,"",$D$16:$D$39,"أ") -> 13 | N11: =COUNTIFS($E$16:$E$39,"مك",$D$16:$D$39,"أ") -> 1 | O11: =N11+M11 -> 14
L12: مج | M12: =M10+M11 -> 20 | N12: =N10+N11 -> 4 | O12: =N12+M12 -> 24
A14: رت | B14: رقم التلميذ | C14: الاسم والنسب | D14: الجنس | E14: التكرار | F14: رقم | G14: تاريخ | H14: رقم | I14: مدة الدراسة | O14: ملاحظات
F15: التسجيل | G15: الازدياد | H15: التسجيل.م | I15: 1 | J15: 2 | K15: 3 | L15: 4 | M15: 5 | N15: 6
A16: =IF($C16="","",MAX($A$15:$A15)+1) -> 1 | B16: F1 | C16: رضوان | D16: ذ | E16: مك | F16: 408 | G16: 2005-06-23
A17: =IF($C17="","",MAX($A$15:$A16)+1) -> 2 | B17: F3 | C17: سلمى | D17: أ | F17: 405 | G17: 2007-10-07
A18: =IF($C18="","",MAX($A$15:$A17)+1) -> 3 | B18: F12 | C18: سلمان | D18: ذ | F18: 414 | G18: 2007-12-31
A19: =IF($C19="","",MAX($A$15:$A18)+1) -> 4 | B19: F6 | C19: فاطمة | D19: أ | F19: 408 | G19: 2008-01-08
A20: =IF($C20="","",MAX($A$15:$A19)+1) -> 5 | B20: F2 | C20: محمد | D20: أ | F20: 404 | G20: 2008-03-14
A21: =IF($C21="","",MAX($A$15:$A20)+1) -> 6 | B21: F13 | C21: مروة | D21: أ | F21: 415 | G21: 2008-04-07
A22: =IF($C22="","",MAX($A$15:$A21)+1) -> 7 | B22: F21 | C22: فتيحة | D22: أ | F22: 423 | G22: 2008-04-12
A23: =IF($C23="","",MAX($A$15:$A22)+1) -> 8 | B23: F14 | C23: خالد | D23: أ | F23: 416 | G23: 2008-04-14
A24: =IF($C24="","",MAX($A$15:$A23)+1) -> 9 | B24: F24 | C24: نادية | D24: أ | F24: 426 | G24: 2008-06-24
A25: =IF($C25="","",MAX($A$15:$A24)+1) -> 10 | B25: F5 | C25: ميلود | D25: ذ | E25: مك | F25: 407 | G25: 2008-07-10
A26: =IF($C26="","",MAX($A$15:$A25)+1) -> 11 | B26: F11 | C26: احمد | D26: ذ | F26: 413 | G26: 2008-07-13
A27: =IF($C27="","",MAX($A$15:$A26)+1) -> 12 | B27: F9 | C27: كمال | D27: ذ | F27: 411 | G27: 2008-07-16
A28: =IF($C28="","",MAX($A$15:$A27)+1) -> 13 | B28: F8 | C28: فريد | D28: ذ | F28: 410 | G28: 2008-07-27
A29: =IF($C29="","",MAX($A$15:$A28)+1) -> 14 | B29: F15 | C29: سفيان | D29: ذ | F29: 417 | G29: 2008-08-13
A30: =IF($C30="","",MAX($A$15:$A29)+1) -> 15 | B30: F20 | C30: سليم | D30: ذ | F30: 422 | G30: 2008-09-22
A31: =IF($C31="","",MAX($A$15:$A30)+1) -> 16 | B31: F23 | C31: جميلة | D31: أ | F31: 425 | G31: 2008-09-29
A32: =IF($C32="","",MAX($A$15:$A31)+1) -> 17 | B32: F4 | C32: شعيب | D32: ذ | F32: 406 | G32: 2008-12-06
A33: =IF($C33="","",MAX($A$15:$A32)+1) -> 18 | B33: F22 | C33: رقية | D33: أ | F33: 424 | G33: 2008-12-22
A34: =IF($C34="","",MAX($A$15:$A33)+1) -> 19 | B34: F17 | C34: مريم | D34: أ | F34: 419 | G34: 2008-12-31
A35: =IF($C35="","",MAX($A$15:$A34)+1) -> 20 | B35: F7 | C35: مصطفى | D35: ذ | E35: مك | F35: 409 | G35: 2009-01-02
A36: =IF($C36="","",MAX($A$15:$A35)+1) -> 21 | B36: F19 | C36: محمد | D36: أ | F36: 421 | G36: 2009-01-02
A37: =IF($C37="","",MAX($A$15:$A36)+1) -> 22 | B37: F16 | C37: لمياء | D37: أ | F37: 418 | G37: 2009-01-24
A38: =IF($C38="","",MAX($A$15:$A37)+1) -> 23 | B38: F18 | C38: لقمان | D38: أ | F38: 420 | G38: 2009-02-20
A39: =IF($C39="","",MAX($A$15:$A38)+1) -> 24 | B39: F10 | C39: لبنى | D39: أ | E39: مك | F39: 412 | G39: 2009-03-15
A40: =IF($C40="","",MAX($A$15:$A39)+1) -> 
A41: =IF($C41="","",MAX($A$15:$A40)+1) -> 
A42: =IF($C42="","",MAX($A$15:$A41)+1) -> 
A43: =IF($C43="","",MAX($A$15:$A42)+1) -> 
A44: =IF($C44="","",MAX($A$15:$A43)+1) -> 
A45: =IF($C45="","",MAX($A$15:$A44)+1) -> 
A46: =IF($C46="","",MAX($A$15:$A45)+1) -> 
A47: =IF($C47="","",MAX($A$15:$A46)+1) -> 
A48: =IF($C48="","",MAX($A$15:$A47)+1) -> 
A49: =IF($C49="","",MAX($A$15:$A48)+1) -> 
A50: =IF($C50="","",MAX($A$15:$A49)+1) -> 
A51: =IF($C51="","",MAX($A$15:$A50)+1) -> 
A52: =IF($C52="","",MAX($A$15:$A51)+1) -> 
A53: =IF($C53="","",MAX($A$15:$A52)+1) -> 
A54: =IF($C54="","",MAX($A$15:$A53)+1) -> 
A55: =IF($C55="","",MAX($A$15:$A54)+1) -> 
A56: =IF($C56="","",MAX($A$15:$A55)+1) -> 
A57: =IF($C57="","",MAX($A$15:$A56)+1) -> 
A58: =IF($C58="","",MAX($A$15:$A57)+1) -> 
A59: =IF($C59="","",MAX($A$15:$A58)+1) -> 
A60: =IF($C60="","",MAX($A$15:$A59)+1) -> 
A61: =IF($C61="","",MAX($A$15:$A60)+1) -> 
A62: =IF($C62="","",MAX($A$15:$A61)+1) -> 
A63: =IF($C63="","",MAX($A$15:$A62)+1) -> 
A64: =IF($C64="","",MAX($A$15:$A63)+1) -> 
A65: =IF($C65="","",MAX($A$15:$A64)+1) -> 

Sheet tre 1
C1: ='tableau de scolarité'!$A$1 -> المملكة المغربية | AD1: العــام الدراســي | AG1: ='tableau de scolarité'!M1 -> 2019_2018
C2: ='tableau de scolarité'!$A$2 -> وزارة التربية الوطنية و التكوين المهني | AD2: الأستاذ(ة) | AG2: ='tableau de scolarité'!M2 -> اسمك هنا
C3: ='tableau de scolarité'!$A$3 -> الاكاديمية الجهوية للتربية و التكوين | AD3: المستوى | AG3: ='tableau de scolarité'!M3 -> الاول
C4: ='tableau de scolarité'!$A$4 -> جهة: اسم الجهة هنا | I4: مجمل نتائج الأسدوس الأول | AD4: الوحدة المدرسية | AG4: ='tableau de scolarité'!M4 -> اسم الوحدة هنا
C5: ='tableau de scolarité'!$A$5 -> مديرية: اسم المديرية هنا | AD5: الفوج | AG5: ='tableau de scolarité'!M5 -> 1
C6: ='tableau de scolarité'!$A$6 -> المؤسسة: اسم المؤسسة هنا
G7: اللغة العربية | W7: الأمازيغية | Z7: التربية الإسلامية | AE7: النشاط العلمي | AH7: التربية الفنية | AK7: الرياضيات | AN7: الفرنسية | AQ7: التربية البدنية | AT7: معامل ت ب | AU7: مج المعاملات | AV7: مج المعدلات | AW7: معدل الدورة | AX7: الرتبة | AY7: الميزة
A8: ر.ت | B8: رقم التلميذ | C8: الاسم و النسب | D8: تاريخ الإزدياد | E8: الجنس | F8: ر.التسجيل | G8: القراءة | J8: الإملاء | M8: الخط | P8: التعبير الشفوي | S8: النقل | V8: معدل | W8: الأمازيغية | Y8: معدل | Z8: فرض1 | AA8: فرض2 | AB8: فرض3 | AC8: أنشطة | AD8: معدل | AE8: النشاط العلمي | AG8: معدل | AH8: التربية الفنية | AJ8: معدل | AK8: الرياضيات | AM8: معدل | AN8: الفرنسية | AP8: معدل | AQ8: التربية البدنية | AS8: معدل
G9: ن1 | H9: ن2 | I9: معدل | J9: ن1 | K9: ن2 | L9: معدل | M9: ن1 | N9: ن2 | O9: معدل | P9: ن1 | Q9: ن2 | R9: معدل | S9: ن1 | T9: ن2 | U9: معدل | V9: الوحدة | W9: ن1 | X9: ن2 | Y9: الوحدة | Z9: ن1 | AA9: ن2 | AB9: ن3 | AC9: ن 4 | AD9: الوحدة | AE9: ن1 | AF9: ن2 | AG9: الوحدة | AH9: ن1 | AI9: ن2 | AJ9: الوحدة | AK9: ن1 | AL9: ن2 | AM9: الوحدة | AN9: ن1 | AO9: ن2 | AP9: الوحدة | AQ9: ن1 | AR9: ن2 | AS9: الوحدة
A10: =IF('tableau de scolarité'!A16="","",'tableau de scolarité'!A16) -> 1 | B10: =IF('tableau de scolarité'!B16="","",'tableau de scolarité'!B16) -> F1 | C10: =IF('tableau de scolarité'!C16="","",'tableau de scolarité'!C16) -> رضوان | D10: =IF('tableau de scolarité'!G16="","",'tableau de scolarité'!G16) -> 2005-06-23 | E10: =IF($A10="","",'tableau de scolarité'!D16) -> ذ | F10: =IF($A10="","",'tableau de scolarité'!F16) -> 408 | G10: 4 | H10: 3 | I10: =IF(OR(G10="",H10=""),"",AVERAGE(G10:H10)) -> 3.5 | J10: 4 | K10: 3 | L10: =IF(OR(J10="",K10=""),"",AVERAGE(J10:K10)) -> 3.5 | M10: 4 | N10: 4 | O10: =IF(OR(M10="",N10=""),"",AVERAGE(M10:N10)) -> 4 | P10: 4 | Q10: 3 | R10: =IF(OR(P10="",Q10=""),"",AVERAGE(P10:Q10)) -> 3.5 | S10: 4 | T10: 4 | U10: =IF(OR(S10="",T10=""),"",AVERAGE(S10:T10)) -> 4 | V10: =IF(OR(U10="",R10="",O10="",L10="",I10=""),"",AVERAGE(R10:U10,O10,L10,I10)) -> 3.785714286 | Y10: =IF(OR(X10="",W10=""),"",AVERAGE(T10:X10)) ->  | Z10: 4 | AA10: 3 | AB10: 3.5 | AC10: 4 | AD10: =IF(OR(AC10="",AB10="",AA10="",Z10=""),"",AVERAGE(AC10,AB10,Z10:AA10)) -> 3.625 | AE10: 4 | AF10: 4 | AG10: =IF(OR(AF10="",AE10=""),"",AVERAGE(AE10:AF10)) -> 4 | AH10: 4 | AI10: 6.5 | AJ10: =IF(OR(AI10="",AH10=""),"",AVERAGE(AH10:AI10)) -> 5.25 | AK10: 3 | AL10: 3.5 | AM10: =IF(OR(AL10="",AK10=""),"",AVERAGE(AK10:AL10)) -> 3.25 | AN10: 4 | AO10: 3.5 | AP10: =IF(OR(AO10="",AN10=""),"",AVERAGE(AN10:AO10)) -> 3.75 | AQ10: 6.25 | AR10: 6.75 | AS10: =IF(OR(AR10="",AQ10=""),"",AVERAGE(AQ10:AR10)) -> 6.5 | AT10: 1 | AU10: =IF($A10="","",6+AT10+'tableau de scolarité'!$P$3) -> 7 | AV10: =IF($A10="","",SUM(V10,AD10,AG10,AJ10,AM10,AP10,AS10)) -> 30.16071429 | AW10: =IF($A10="","",AV10/AU10) -> 4.308673469 | AX10: =IF(A10="","",RANK(AW10,$AW$10:$AW$59)) -> 22 | AY10: =IF($A10="","",IF(AW10>=8,"تنويه",IF(AW10>=7,"تشجيع",IF(AW10>=6,"لوحة الشرف",IF(AW10>=5,"متوسط",IF(AW10>=4,"دون المتوسط",IF(AW10>=3,"ناقص",IF(AW10>2,"تنبيه",IF(AW10>=1,"توبيخ","انذار"))))))))) -> دون المتوسط
A11: =IF('tableau de scolarité'!A17="","",'tableau de scolarité'!A17) -> 2 | B11: =IF($A11="","",'tableau de scolarité'!B17) -> F3 | C11: =IF($A11="","",'tableau de scolarité'!C17) -> سلمى | D11: =IF(A11="","",'tableau de scolarité'!G17) -> 2007-10-07 | E11: =IF($A11="","",'tableau de scolarité'!D17) -> أ | F11: =IF($A11="","",'tableau de scolarité'!F17) -> 405 | G11: 4 | H11: 4.5 | I11: =IF(OR(G11="",H11=""),"",AVERAGE(G11:H11)) -> 4.25 | J11: 6.5 | K11: 6 | L11: =IF(OR(J11="",K11=""),"",AVERAGE(J11:K11)) -> 6.25 | M11: 6 | N11: 6 | O11: =IF(OR(M11="",N11=""),"",AVERAGE(M11:N11)) -> 6 | P11: 4 | Q11: 6.5 | R11: =IF(OR(P11="",Q11=""),"",AVERAGE(P11:Q11)) -> 5.25 | S11: 6 | T11: 5 | U11: =IF(OR(S11="",T11=""),"",AVERAGE(S11:T11)) -> 5.5 | V11: =IF(OR(U11="",R11="",O11="",L11="",I11=""),"",AVERAGE(R11:U11,O11,L11,I11)) -> 5.464285714 | Y11: =IF(OR(X11="",W11=""),"",AVERAGE(T11:X11)) ->  | Z11: 6.5 | AA11: 4 | AB11: 5.25 | AC11: 6 | AD11: =IF(OR(AC11="",AB11="",AA11="",Z11=""),"",AVERAGE(AC11,AB11,Z11:AA11)) -> 5.4375 | AE11: 9.5 | AF11: 9 | AG11: =IF(OR(AF11="",AE11=""),"",AVERAGE(AE11:AF11)) -> 9.25 | AH11: 7.25 | AI11: 6.5 | AJ11: =IF(OR(AI11="",AH11=""),"",AVERAGE(AH11:AI11)) -> 6.875 | AK11: 6.58 | AL11: 6.75 | AM11: =IF(OR(AL11="",AK11=""),"",AVERAGE(AK11:AL11)) -> 6.665 | AN11: 6 | AO11: 5.25 | AP11: =IF(OR(AO11="",AN11=""),"",AVERAGE(AN11:AO11)) -> 5.625 | AQ11: 5.5 | AR11: 6.75 | AS11: =IF(OR(AR11="",AQ11=""),"",AVERAGE(AQ11:AR11)) -> 6.125 | AT11: 1 | AU11: =IF($A11="","",6+AT11+'tableau de scolarité'!$P$3) -> 7 | AV11: =IF($A11="","",SUM(V11,AD11,AG11,AJ11,AM11,AP11,AS11)) -> 45.44178571 | AW11: =IF($A11="","",AV11/AU11) -> 6.491683673 | AX11: =IF(A11="","",RANK(AW11,$AW$10:$AW$59)) -> 8 | AY11: =IF($A11="","",IF(AW11>=8,"تنويه",IF(AW11>=7,"تشجيع",IF(AW11>=6,"لوحة الشرف",IF(AW11>=5,"متوسط",IF(AW11>=4,"دون المتوسط",IF(AW11>=3,"ناقص",IF(AW11>2,"تنبيه",IF(AW11>=1,"توبيخ","انذار"))))))))) -> لوحة الشرف
A12: =IF('tableau de scolarité'!A18="","",'tableau de scolarité'!A18) -> 3 | B12: =IF($A12="","",'tableau de scolarité'!B18) -> F12 | C12: =IF($A12="","",'tableau de scolarité'!C18) -> سلمان | D12: =IF(A12="","",'tableau de scolarité'!G18) -> 2007-12-31 | E12: =IF($A12="","",'tableau de scolarité'!D18) -> ذ | F12: =IF($A12="","",'tableau de scolarité'!F18) -> 414 | G12: 3.5 | H12: 4.5 | I12: 4 | J12: 6 | K12: 5 | L12: 5.5 | M12: 5 | N12: 5.5 | O12: 5.25 | P12: 3.5 | Q12: 4.5 | R12: 4 | S12: 5 | T12: 5 | U12: 5 | V12: =IF(OR(U12="",R12="",O12="",L12="",I12=""),"",AVERAGE(R12:U12,O12,L12,I12)) -> 4.821428571 | Z12: 5 | AA12: 3 | AB12: 4 | AC12: 5.5 | AD12: 4.375 | AE12: 5 | AF12: 6.66 | AG12: 5.83 | AH12: 8 | AI12: 6.5 | AJ12: 7.25 | AK12: 5 | AL12: 5.5 | AM12: 5.25 | AN12: 5 | AO12: 4 | AP12: 4.5 | AQ12: 6.25 | AR12: 6.5 | AS12: 6.375 | AT12: 1 | AU12: =IF($A12="","",6+AT12+'tableau de scolarité'!$P$3) -> 7 | AV12: 38.40142857 | AW12: 5.485918367 | AX12: 12 | AY12: متوسط
A13: =IF('tableau de scolarité'!A19="","",'tableau de scolarité'!A19) -> 4 | B13: =IF($A13="","",'tableau de scolarité'!B19) -> F6 | C13: =IF($A13="","",'tableau de scolarité'!C19) -> فاطمة | D13: =IF(A13="","",'tableau de scolarité'!G19) -> 2008-01-08 | E13: =IF($A13="","",'tableau de scolarité'!D19) -> أ | F13: =IF($A13="","",'tableau de scolarité'!F19) -> 408 | G13: 7 | H13: 6.5 | I13: 6.75 | J13: 6 | K13: 6.75 | L13: 6.375 | M13: 6 | N13: 7 | O13: 6.5 | P13: 6.5 | Q13: 8 | R13: 7.25 | S13: 6 | T13: 6 | U13: 6 | V13: =IF(OR(U13="",R13="",O13="",L13="",I13=""),"",AVERAGE(R13:U13,O13,L13,I13)) -> 6.410714286 | Z13: 8.75 | AA13: 5.5 | AB13: 7.13 | AC13: 7.5 | AD13: 7.22 | AE13: 6 | AF13: 9.5 | AG13: =IF(OR(AF13="",AE13=""),"",AVERAGE(AE13:AF13)) -> 7.75 | AH13: 7.5 | AI13: 9 | AJ13: 8.25 | AK13: 8.83 | AL13: 9.5 | AM13: 9.165 | AN13: 6 | AO13: 7.125 | AP13: 6.5625 | AQ13: 6.25 | AR13: 6.75 | AS13: 6.5 | AT13: 1 | AU13: =IF($A13="","",6+AT13+'tableau de scolarité'!$P$3) -> 7 | AV13: 51.85821429 | AW13: 7.408316327 | AX13: 3 | AY13: تشجيع
A14: =IF('tableau de scolarité'!A20="","",'tableau de scolarité'!A20) -> 5 | B14: =IF($A14="","",'tableau de scolarité'!B20) -> F2 | C14: =IF($A14="","",'tableau de scolarité'!C20) -> محمد | D14: =IF(A14="","",'tableau de scolarité'!G20) -> 2008-03-14 | E14: =IF($A14="","",'tableau de scolarité'!D20) -> أ | F14: =IF($A14="","",'tableau de scolarité'!F20) -> 404 | G14: 4 | H14: 5 | I14: 4.5 | J14: 5.5 | K14: 5 | L14: 5.25 | M14: 4 | N14: 6.5 | O14: 5.25 | P14: 4 | Q14: 6.5 | R14: 5.25 | S14: 4 | T14: 6 | U14: 5 | V14: 5.035714286 | Z14: 5.25 | AA14: 4.5 | AB14: 4.88 | AC14: 6 | AD14: 5.1575 | AE14: 7 | AF14: 9 | AG14: 8 | AH14: 6 | AI14: 7 | AJ14: 6.5 | AK14: 4.66 | AL14: 6.25 | AM14: 5.455 | AN14: 4 | AO14: 4.875 | AP14: 4.4375 | AQ14: 5.5 | AR14: 6.75 | AS14: 6.125 | AT14: 1 | AU14: =IF($A14="","",6+AT14+'tableau de scolarité'!$P$3) -> 7 | AV14: 40.71071429 | AW14: 5.815816327 | AX14: 10 | AY14: متوسط
A15: =IF('tableau de scolarité'!A21="","",'tableau de scolarité'!A21) -> 6 | B15: =IF($A15="","",'tableau de scolarité'!B21) -> F13 | C15: =IF($A15="","",'tableau de scolarité'!C21) -> مروة | D15: =IF(A15="","",'tableau de scolarité'!G21) -> 2008-04-07 | E15: =IF($A15="","",'tableau de scolarité'!D21) -> أ | F15: =IF($A15="","",'tableau de scolarité'!F21) -> 415 | G15: 3 | H15: 3.5 | I15: 3.25 | J15: 2 | K15: 3 | L15: 2.5 | M15: 2 | N15: 4 | O15: 3 | P15: 3 | Q15: 4 | R15: 3.5 | S15: 2 | T15: 4 | U15: 3 | V15: 3.035714286 | Z15: 3 | AA15: 3 | AB15: 3 | AC15: 4 | AD15: 3.25 | AE15: 4.5 | AF15: 4.5 | AG15: 4.5 | AH15: 6.25 | AI15: 5 | AJ15: 5.625 | AK15: 4.33 | AL15: 2.75 | AM15: 3.54 | AN15: 2 | AO15: 3 | AP15: 2.5 | AQ15: 5 | AR15: 6 | AS15: 5.5 | AT15: 1 | AU15: =IF($A15="","",6+AT15+'tableau de scolarité'!$P$3) -> 7 | AV15: 27.95071429 | AW15: 3.992959184 | AX15: 23 | AY15: ناقص
A16: =IF('tableau de scolarité'!A22="","",'tableau de scolarité'!A22) -> 7 | B16: =IF($A16="","",'tableau de scolarité'!B22) -> F21 | C16: =IF($A16="","",'tableau de scolarité'!C22) -> فتيحة | D16: =IF(A16="","",'tableau de scolarité'!G22) -> 2008-04-12 | E16: =IF($A16="","",'tableau de scolarité'!D22) -> أ | F16: =IF($A16="","",'tableau de scolarité'!F22) -> 423 | G16: 3 | H16: 4.5 | I16: 3.75 | J16: 3 | K16: 5 | L16: 4 | M16: 3 | N16: 5 | O16: 4 | P16: 3 | Q16: 5.5 | R16: 4.25 | S16: 3 | T16: 5 | U16: 4 | V16: 4 | Z16: 3 | AA16: 3 | AB16: 3 | AC16: 4 | AD16: 3.25 | AE16: 6.5 | AF16: 6.66 | AG16: 6.58 | AH16: 5.5 | AI16: 6.5 | AJ16: 6 | AK16: 4.5 | AL16: 5.5 | AM16: 5 | AN16: 3 | AO16: 3 | AP16: 3 | AQ16: 5 | AR16: 6 | AS16: 5.5 | AT16: 1 | AU16: =IF($A16="","",6+AT16+'tableau de scolarité'!$P$3) -> 7 | AV16: 33.33 | AW16: 4.761428571 | AX16: 16 | AY16: دون المتوسط
A17: =IF('tableau de scolarité'!A23="","",'tableau de scolarité'!A23) -> 8 | B17: =IF($A17="","",'tableau de scolarité'!B23) -> F14 | C17: =IF($A17="","",'tableau de scolarité'!C23) -> خالد | D17: =IF(A17="","",'tableau de scolarité'!G23) -> 2008-04-14 | E17: =IF($A17="","",'tableau de scolarité'!D23) -> أ | F17: =IF($A17="","",'tableau de scolarité'!F23) -> 416 | G17: 4.5 | H17: 6.5 | I17: 5.5 | J17: 6 | K17: 6.75 | L17: 6.375 | M17: 5 | N17: 6 | O17: 5.5 | P17: 4 | Q17: 7.5 | R17: 5.75 | S17: 5 | T17: 6 | U17: 5.5 | V17: 5.660714286 | Z17: 5.5 | AA17: 4 | AB17: 4.75 | AC17: 6.5 | AD17: 5.1875 | AE17: 10 | AF17: 9.33 | AG17: 9.665 | AH17: 7.5 | AI17: 8.75 | AJ17: 8.125 | AK17: 8.16 | AL17: 8.25 | AM17: 8.205 | AN17: 5 | AO17: 4.75 | AP17: 4.875 | AQ17: 6.5 | AR17: 6.5 | AS17: 6.5 | AT17: 1 | AU17: =IF($A17="","",6+AT17+'tableau de scolarité'!$P$3) -> 7 | AV17: 48.21821429 | AW17: 6.888316327 | AX17: 5 | AY17: لوحة الشرف
A18: =IF('tableau de scolarité'!A24="","",'tableau de scolarité'!A24) -> 9 | B18: =IF($A18="","",'tableau de scolarité'!B24) -> F24 | C18: =IF($A18="","",'tableau de scolarité'!C24) -> نادية | D18: =IF(A18="","",'tableau de scolarité'!G24) -> 2008-06-24 | E18: =IF($A18="","",'tableau de scolarité'!D24) -> أ | F18: =IF($A18="","",'tableau de scolarité'!F24) -> 426 | G18: 5.75 | H18: 6.5 | I18: 6.125 | J18: 7 | K18: 7 | L18: 7 | M18: 6 | N18: 7 | O18: 6.5 | P18: 6 | Q18: 7.75 | R18: 6.875 | S18: 7 | T18: 6.5 | U18: 6.75 | V18: 6.678571429 | Z18: 8.5 | AA18: 6.5 | AB18: 4.5 | AC18: 8.5 | AD18: 7 | AE18: 10 | AF18: 8.66 | AG18: 9.33 | AH18: 8 | AI18: 8.75 | AJ18: 8.375 | AK18: 8.75 | AL18: 7.5 | AM18: 8.125 | AN18: 6 | AO18: 7.5 | AP18: 6.75 | AQ18: 5.75 | AR18: 6.75 | AS18: 6.25 | AT18: 1 | AU18: =IF($A18="","",6+AT18+'tableau de scolarité'!$P$3) -> 7 | AV18: 52.50857143 | AW18: 7.50122449 | AX18: 2 | AY18: تشجيع
A19: =IF('tableau de scolarité'!A25="","",'tableau de scolarité'!A25) -> 10 | B19: =IF($A19="","",'tableau de scolarité'!B25) -> F5 | C19: =IF($A19="","",'tableau de scolarité'!C25) -> ميلود | D19: =IF(A19="","",'tableau de scolarité'!G25) -> 2008-07-10 | E19: =IF($A19="","",'tableau de scolarité'!D25) -> ذ | F19: =IF($A19="","",'tableau de scolarité'!F25) -> 407 | G19: 3.5 | H19: 3.5 | I19: 3.5 | J19: 4.5 | K19: 5 | L19: 4.75 | M19: 4 | N19: 5 | O19: 4.5 | P19: 3.5 | Q19: 4 | R19: 3.75 | S19: 4 | T19: 5 | U19: 4.5 | V19: 4.285714286 | Z19: 4 | AA19: 3 | AB19: 3.5 | AC19: 5 | AD19: 3.875 | AE19: 6 | AF19: 5 | AG19: 5.5 | AH19: 6 | AI19: 6 | AJ19: 6 | AK19: 4.25 | AL19: 1.5 | AM19: 2.875 | AN19: 4 | AO19: 3.5 | AP19: 3.75 | AQ19: 5.5 | AR19: 6 | AS19: 5.75 | AT19: 1 | AU19: =IF($A19="","",6+AT19+'tableau de scolarité'!$P$3) -> 7 | AV19: 32.03571429 | AW19: 4.576530612 | AX19: 18 | AY19: دون المتوسط
A20: =IF('tableau de scolarité'!A26="","",'tableau de scolarité'!A26) -> 11 | B20: =IF($A20="","",'tableau de scolarité'!B26) -> F11 | C20: =IF($A20="","",'tableau de scolarité'!C26) -> احمد | D20: =IF(A20="","",'tableau de scolarité'!G26) -> 2008-07-13 | E20: =IF($A20="","",'tableau de scolarité'!D26) -> ذ | F20: =IF($A20="","",'tableau de scolarité'!F26) -> 413 | G20: 6 | H20: 6 | I20: 6 | J20: 6.5 | K20: 8.5 | L20: 7.5 | M20: 6 | N20: 6.5 | O20: 6.25 | P20: 6 | Q20: 7.75 | R20: 6.875 | S20: 6.5 | T20: 7.5 | U20: 7 | V20: 6.803571429 | Z20: 5 | AA20: 4 | AB20: 4.5 | AC20: 7 | AD20: 5.125 | AE20: 5.5 | AF20: 10 | AG20: 7.75 | AH20: 7 | AI20: 9 | AJ20: 8 | AK20: 8.16 | AL20: 7.5 | AM20: 7.83 | AN20: 6 | AO20: 4.5 | AP20: 5.25 | AQ20: 6.25 | AR20: 6.75 | AS20: 6.5 | AT20: 1 | AU20: =IF($A20="","",6+AT20+'tableau de scolarité'!$P$3) -> 7 | AV20: 47.25857143 | AW20: 6.75122449 | AX20: 7 | AY20: لوحة الشرف
A21: =IF('tableau de scolarité'!A27="","",'tableau de scolarité'!A27) -> 12 | B21: =IF($A21="","",'tableau de scolarité'!B27) -> F9 | C21: =IF($A21="","",'tableau de scolarité'!C27) -> كمال | D21: =IF(A21="","",'tableau de scolarité'!G27) -> 2008-07-16 | E21: =IF($A21="","",'tableau de scolarité'!D27) -> ذ | F21: =IF($A21="","",'tableau de scolarité'!F27) -> 411 | G21: 7 | H21: 6.5 | I21: 6.75 | J21: 7 | K21: 7 | L21: 7 | M21: 6.5 | N21: 7 | O21: 6.75 | P21: 6.75 | Q21: 8.5 | R21: 7.625 | S21: 6.5 | T21: 8 | U21: 7.25 | V21: 7.125 | Z21: 4 | AA21: 4 | AB21: 4 | AC21: 8 | AD21: 5 | AE21: 10 | AF21: 10 | AG21: 10 | AH21: 8.5 | AI21: 9 | AJ21: 8.75 | AK21: 7.88 | AL21: 10 | AM21: 8.94 | AN21: 6.5 | AO21: 7.5 | AP21: 7 | AQ21: 6.25 | AR21: 6.75 | AS21: 6.5 | AT21: 1 | AU21: =IF($A21="","",6+AT21+'tableau de scolarité'!$P$3) -> 7 | AV21: 53.315 | AW21: 7.616428571 | AX21: 1 | AY21: تشجيع
A22: =IF('tableau de scolarité'!A28="","",'tableau de scolarité'!A28) -> 13 | B22: =IF($A22="","",'tableau de scolarité'!B28) -> F8 | C22: =IF($A22="","",'tableau de scolarité'!C28) -> فريد | D22: =IF(A22="","",'tableau de scolarité'!G28) -> 2008-07-27 | E22: =IF($A22="","",'tableau de scolarité'!D28) -> ذ | F22: =IF($A22="","",'tableau de scolarité'!F28) -> 410 | G22: 3.5 | H22: 3 | I22: 3.25 | J22: 2 | K22: 6 | L22: 4 | M22: 3 | N22: 5 | O22: 4 | P22: 3.5 | Q22: 4.5 | R22: 4 | S22: 3 | T22: 6 | U22: 4.5 | V22: 4.107142857 | Z22: 4 | AA22: 3 | AB22: 3.5 | AC22: 5 | AD22: 3.875 | AE22: 2.5 | AF22: 9.25 | AG22: 5.875 | AH22: 6.25 | AI22: 6.5 | AJ22: 6.375 | AK22: 4.16 | AL22: 2.5 | AM22: 3.33 | AN22: 3 | AO22: 3.5 | AP22: 3.25 | AQ22: 6 | AR22: 6.5 | AS22: 6.25 | AT22: 1 | AU22: =IF($A22="","",6+AT22+'tableau de scolarité'!$P$3) -> 7 | AV22: 33.06214286 | AW22: 4.723163265 | AX22: 17 | AY22: دون المتوسط
A23: =IF('tableau de scolarité'!A29="","",'tableau de scolarité'!A29) -> 14 | B23: =IF($A23="","",'tableau de scolarité'!B29) -> F15 | C23: =IF($A23="","",'tableau de scolarité'!C29) -> سفيان | D23: =IF(A23="","",'tableau de scolarité'!G29) -> 2008-08-13 | E23: =IF($A23="","",'tableau de scolarité'!D29) -> ذ | F23: =IF($A23="","",'tableau de scolarité'!F29) -> 417 | G23: 5.5 | H23: 6.75 | I23: 6.125 | J23: 6 | K23: 6.75 | L23: 6.375 | M23: 6 | N23: 6.5 | O23: 6.25 | P23: 5.5 | Q23: 7.75 | R23: 6.625 | S23: 6 | T23: 6 | U23: 6 | V23: 6.196428571 | Z23: 6 | AA23: 3 | AB23: 4.5 | AC23: 6.5 | AD23: 5 | AE23: 6 | AF23: 9.33 | AG23: 7.665 | AH23: 7.5 | AI23: 7 | AJ23: 7.25 | AK23: 4.25 | AL23: 9 | AM23: 6.625 | AN23: 6 | AO23: 4.5 | AP23: 5.25 | AQ23: 6.5 | AR23: 6.5 | AS23: 6.5 | AT23: 1 | AU23: =IF($A23="","",6+AT23+'tableau de scolarité'!$P$3) -> 7 | AV23: 44.48642857 | AW23: 6.355204082 | AX23: 9 | AY23: لوحة الشرف
A24: =IF('tableau de scolarité'!A30="","",'tableau de scolarité'!A30) -> 15 | B24: =IF($A24="","",'tableau de scolarité'!B30) -> F20 | C24: =IF($A24="","",'tableau de scolarité'!C30) -> سليم | D24: =IF(A24="","",'tableau de scolarité'!G30) -> 2008-09-22 | E24: =IF($A24="","",'tableau de scolarité'!D30) -> ذ | F24: =IF($A24="","",'tableau de scolarité'!F30) -> 422 | G24: 3.5 | H24: 4.5 | I24: 4 | J24: 4 | K24: 6 | L24: 5 | M24: 4 | N24: 5 | O24: 4.5 | P24: 3.5 | Q24: 4.5 | R24: 4 | S24: 4 | T24: 6 | U24: 5 | V24: 4.642857143 | Z24: 4 | AA24: 3 | AB24: 3.5 | AC24: 5 | AD24: 3.875 | AE24: 3.5 | AF24: 5.33 | AG24: 4.415 | AH24: 6.75 | AI24: 8 | AJ24: 7.375 | AK24: 5.08 | AL24: 5 | AM24: 5.04 | AN24: 4 | AO24: 3.5 | AP24: 3.75 | AQ24: 5 | AR24: 6.5 | AS24: 5.75 | AT24: 1 | AU24: =IF($A24="","",6+AT24+'tableau de scolarité'!$P$3) -> 7 | AV24: 34.84785714 | AW24: 4.978265306 | AX24: 15 | AY24: دون المتوسط
A25: =IF('tableau de scolarité'!A31="","",'tableau de scolarité'!A31) -> 16 | B25: =IF($A25="","",'tableau de scolarité'!B31) -> F23 | C25: =IF($A25="","",'tableau de scolarité'!C31) -> جميلة | D25: =IF(A25="","",'tableau de scolarité'!G31) -> 2008-09-29 | E25: =IF($A25="","",'tableau de scolarité'!D31) -> أ | F25: =IF($A25="","",'tableau de scolarité'!F31) -> 425 | G25: 5.5 | H25: 4.5 | I25: 5 | J25: 4 | K25: 4 | L25: 4 | M25: 4 | N25: 6 | O25: 5 | P25: 5.75 | Q25: 5.5 | R25: 5.625 | S25: 4.5 | T25: 5 | U25: 4.75 | V25: 4.839285714 | Z25: 6 | AA25: 3 | AB25: 4.5 | AC25: 6 | AD25: 4.875 | AE25: 9 | AF25: 4.66 | AG25: 6.83 | AH25: 7.25 | AI25: 6 | AJ25: 6.625 | AK25: 6.33 | AL25: 4.25 | AM25: 5.29 | AN25: 4 | AO25: 4.5 | AP25: 4.25 | AQ25: 6 | AR25: 6 | AS25: 6 | AT25: 1 | AU25: =IF($A25="","",6+AT25+'tableau de scolarité'!$P$3) -> 7 | AV25: 38.70928571 | AW25: 5.529897959 | AX25: 11 | AY25: متوسط
A26: =IF('tableau de scolarité'!A32="","",'tableau de scolarité'!A32) -> 17 | B26: =IF($A26="","",'tableau de scolarité'!B32) -> F4 | C26: =IF($A26="","",'tableau de scolarité'!C32) -> شعيب | D26: =IF(A26="","",'tableau de scolarité'!G32) -> 2008-12-06 | E26: =IF($A26="","",'tableau de scolarité'!D32) -> ذ | F26: =IF($A26="","",'tableau de scolarité'!F32) -> 406 | G26: 7 | H26: 5.5 | I26: 6.25 | J26: 8 | K26: 9 | L26: 8.5 | M26: 6 | N26: 7 | O26: 6.5 | P26: 6.5 | Q26: 7.5 | R26: 7 | S26: 6 | T26: 7 | U26: 6.5 | V26: 6.821428571 | Z26: 6 | AA26: 7.5 | AB26: 6.75 | AC26: 7 | AD26: 6.8125 | AE26: 9 | AF26: 9.33 | AG26: 9.165 | AH26: 8 | AI26: 7 | AJ26: 7.5 | AK26: 7.58 | AL26: 8.5 | AM26: 8.04 | AN26: 6 | AO26: 6.75 | AP26: 6.375 | AQ26: 6.75 | AR26: 6.75 | AS26: 6.75 | AT26: 1 | AU26: =IF($A26="","",6+AT26+'tableau de scolarité'!$P$3) -> 7 | AV26: 51.46392857 | AW26: 7.351989796 | AX26: 4 | AY26: تشجيع
A27: =IF('tableau de scolarité'!A33="","",'tableau de scolarité'!A33) -> 18 | B27: =IF($A27="","",'tableau de scolarité'!B33) -> F22 | C27: =IF($A27="","",'tableau de scolarité'!C33) -> رقية | D27: =IF(A27="","",'tableau de scolarité'!G33) -> 2008-12-22 | E27: =IF($A27="","",'tableau de scolarité'!D33) -> أ | F27: =IF($A27="","",'tableau de scolarité'!F33) -> 424 | G27: 3.5 | H27: 3 | I27: 3.25 | J27: 4 | K27: 4 | L27: 4 | M27: 4 | N27: 4 | O27: 4 | P27: 3.5 | Q27: 3 | R27: 3.25 | S27: 4 | T27: 3 | U27: 3.5 | V27: 3.571428571 | Z27: 4 | AA27: 4 | AB27: 4 | AC27: 5 | AD27: 4.25 | AE27: 4 | AF27: 6.66 | AG27: 5.33 | AH27: 5.75 | AI27: 5.5 | AJ27: 5.625 | AK27: 2.5 | AL27: 1.75 | AM27: 2.125 | AN27: 4 | AO27: 4 | AP27: 4 | AQ27: 6 | AR27: 6.75 | AS27: 6.375 | AT27: 1 | AU27: =IF($A27="","",6+AT27+'tableau de scolarité'!$P$3) -> 7 | AV27: 31.27642857 | AW27: 4.468061224 | AX27: 19 | AY27: دون المتوسط
A28: =IF('tableau de scolarité'!A34="","",'tableau de scolarité'!A34) -> 19 | B28: =IF($A28="","",'tableau de scolarité'!B34) -> F17 | C28: =IF($A28="","",'tableau de scolarité'!C34) -> مريم | D28: =IF(A28="","",'tableau de scolarité'!G34) -> 2008-12-31 | E28: =IF($A28="","",'tableau de scolarité'!D34) -> أ | F28: =IF($A28="","",'tableau de scolarité'!F34) -> 419 | G28: 3.5 | H28: 3 | I28: 3.25 | J28: 2 | K28: 3 | L28: 2.5 | M28: 2 | N28: 3 | O28: 2.5 | P28: 3.5 | Q28: 3 | R28: 3.25 | S28: 2 | T28: 3 | U28: 2.5 | V28: 2.714285714 | Z28: 4 | AA28: 3 | AB28: 3.5 | AC28: 4 | AD28: 3.625 | AE28: 3.5 | AF28: 2 | AG28: 2.75 | AH28: 5 | AI28: 4 | AJ28: 4.5 | AK28: 4.5 | AL28: 1 | AM28: 2.75 | AN28: 2 | AO28: 3.5 | AP28: 2.75 | AQ28: 5.25 | AR28: 6.5 | AS28: 5.875 | AT28: 1 | AU28: =IF($A28="","",6+AT28+'tableau de scolarité'!$P$3) -> 7 | AV28: 24.96428571 | AW28: 3.566326531 | AX28: 24 | AY28: ناقص
A29: =IF('tableau de scolarité'!A35="","",'tableau de scolarité'!A35) -> 20 | B29: =IF($A29="","",'tableau de scolarité'!B35) -> F7 | C29: =IF($A29="","",'tableau de scolarité'!C35) -> مصطفى | D29: =IF(A29="","",'tableau de scolarité'!G35) -> 2009-01-02 | E29: =IF($A29="","",'tableau de scolarité'!D35) -> ذ | F29: =IF($A29="","",'tableau de scolarité'!F35) -> 409 | G29: 4 | H29: 4.5 | I29: 4.25 | J29: 7 | K29: 7.5 | L29: 7.25 | M29: 7 | N29: 6.5 | O29: 6.75 | P29: 4 | Q29: 7 | R29: 5.5 | S29: 7 | T29: 8 | U29: 7.5 | V29: 6.607142857 | Z29: 6.5 | AA29: 4 | AB29: 5.25 | AC29: 7 | AD29: 5.6875 | AE29: 8.5 | AF29: 6 | AG29: 7.25 | AH29: 7.5 | AI29: 9 | AJ29: 8.25 | AK29: 7.83 | AL29: 6 | AM29: 6.915 | AN29: 7 | AO29: 5.25 | AP29: 6.125 | AQ29: 6.5 | AR29: 6.5 | AS29: 6.5 | AT29: 1 | AU29: =IF($A29="","",6+AT29+'tableau de scolarité'!$P$3) -> 7 | AV29: 47.33464286 | AW29: 6.762091837 | AX29: 6 | AY29: لوحة الشرف
A30: =IF('tableau de scolarité'!A36="","",'tableau de scolarité'!A36) -> 21 | B30: =IF($A30="","",'tableau de scolarité'!B36) -> F19 | C30: =IF($A30="","",'tableau de scolarité'!C36) -> محمد | D30: =IF(A30="","",'tableau de scolarité'!G36) -> 2009-01-02 | E30: =IF($A30="","",'tableau de scolarité'!D36) -> أ | F30: =IF($A30="","",'tableau de scolarité'!F36) -> 421 | G30: 3.5 | H30: 3 | I30: 3.25 | J30: 6 | K30: 5 | L30: 5.5 | M30: 4 | N30: 5 | O30: 4.5 | P30: 4 | Q30: 5.5 | R30: 4.75 | S30: 4 | T30: 5 | U30: 4.5 | V30: 4.5 | Z30: 5 | AA30: 3 | AB30: 4 | AC30: 5 | AD30: 4.25 | AE30: 6.5 | AF30: 6.66 | AG30: 6.58 | AH30: 7.5 | AI30: 7 | AJ30: 7.25 | AK30: 4.33 | AL30: 3 | AM30: 3.665 | AN30: 4 | AO30: 4 | AP30: 4 | AQ30: 6 | AR30: 6.5 | AS30: 6.25 | AT30: 1 | AU30: =IF($A30="","",6+AT30+'tableau de scolarité'!$P$3) -> 7 | AV30: 36.495 | AW30: 5.213571429 | AX30: 13 | AY30: متوسط
A31: =IF('tableau de scolarité'!A37="","",'tableau de scolarité'!A37) -> 22 | B31: =IF($A31="","",'tableau de scolarité'!B37) -> F16 | C31: =IF($A31="","",'tableau de scolarité'!C37) -> لمياء | D31: =IF(A31="","",'tableau de scolarité'!G37) -> 2009-01-24 | E31: =IF($A31="","",'tableau de scolarité'!D37) -> أ | F31: =IF($A31="","",'tableau de scolarité'!F37) -> 418 | G31: 3.5 | H31: 3 | I31: 3.25 | J31: 3 | K31: 3 | L31: 3 | M31: 3 | N31: 4 | O31: 3.5 | P31: 4 | Q31: 4 | R31: 4 | S31: 3 | T31: 3 | U31: 3 | V31: 3.25 | Z31: 4.5 | AA31: 3 | AB31: 3.75 | AC31: 4 | AD31: 3.8125 | AE31: 7.5 | AF31: 4 | AG31: 5.75 | AH31: 6 | AI31: 6.5 | AJ31: 6.25 | AK31: 3 | AL31: 1 | AM31: 2 | AN31: 3 | AO31: 3.75 | AP31: 3.375 | AQ31: 5 | AR31: 6.5 | AS31: 5.75 | AT31: 1 | AU31: =IF($A31="","",6+AT31+'tableau de scolarité'!$P$3) -> 7 | AV31: 30.1875 | AW31: 4.3125 | AX31: 21 | AY31: دون المتوسط
A32: =IF('tableau de scolarité'!A38="","",'tableau de scolarité'!A38) -> 23 | B32: =IF($A32="","",'tableau de scolarité'!B38) -> F18 | C32: =IF($A32="","",'tableau de scolarité'!C38) -> لقمان | D32: =IF(A32="","",'tableau de scolarité'!G38) -> 2009-02-20 | E32: =IF($A32="","",'tableau de scolarité'!D38) -> أ | F32: =IF($A32="","",'tableau de scolarité'!F38) -> 420 | G32: 3.75 | H32: 3 | I32: 3.375 | J32: 2 | K32: 4 | L32: 3 | M32: 2 | N32: 4 | O32: 3 | P32: 4 | Q32: 4 | R32: 4 | S32: 2 | T32: 5 | U32: 3.5 | V32: 3.410714286 | Z32: 4.75 | AA32: 3 | AB32: 3.83 | AC32: 5.5 | AD32: 4.27 | AE32: 4.5 | AF32: 4 | AG32: 4.25 | AH32: 6.5 | AI32: 6.5 | AJ32: 6.5 | AK32: 4.5 | AL32: 4 | AM32: 4.25 | AN32: 2 | AO32: 3.875 | AP32: 2.9375 | AQ32: 5 | AR32: 6.25 | AS32: 5.625 | AT32: 1 | AU32: =IF($A32="","",6+AT32+'tableau de scolarité'!$P$3) -> 7 | AV32: 31.24321429 | AW32: 4.463316327 | AX32: 20 | AY32: دون المتوسط
A33: =IF('tableau de scolarité'!A39="","",'tableau de scolarité'!A39) -> 24 | B33: =IF($A33="","",'tableau de scolarité'!B39) -> F10 | C33: =IF($A33="","",'tableau de scolarité'!C39) -> لبنى | D33: =IF(A33="","",'tableau de scolarité'!G39) -> 2009-03-15 | E33: =IF($A33="","",'tableau de scolarité'!D39) -> أ | F33: =IF($A33="","",'tableau de scolarité'!F39) -> 412 | G33: 3.5 | H33: 4 | I33: 3.75 | J33: 2 | K33: 4 | L33: 3 | M33: 3 | N33: 4 | O33: 3.5 | P33: 3.5 | Q33: 4 | R33: 3.75 | S33: 3 | T33: 5 | U33: 4 | V33: 3.714285714 | Z33: 5 | AA33: 4 | AB33: 4.5 | AC33: 4.5 | AD33: 4.5 | AE33: 7 | AF33: 8 | AG33: 7.5 | AH33: 5 | AI33: 8 | AJ33: 6.5 | AK33: 4.5 | AL33: 2 | AM33: 3.25 | AN33: 3 | AO33: 4.5 | AP33: 3.75 | AQ33: 5 | AR33: 6.5 | AS33: 5.75 | AT33: 1 | AU33: =IF($A33="","",6+AT33+'tableau de scolarité'!$P$3) -> 7 | AV33: 34.96428571 | AW33: 4.994897959 | AX33: 14 | AY33: دون المتوسط
A34: =IF('tableau de scolarité'!A40="","",'tableau de scolarité'!A40) ->  | B34: =IF($A34="","",'tableau de scolarité'!B40) ->  | C34: =IF($A34="","",'tableau de scolarité'!C40) ->  | D34: =IF(A34="","",'tableau de scolarité'!G40) ->  | E34: =IF($A34="","",'tableau de scolarité'!D40) ->  | F34: =IF($A34="","",'tableau de scolarité'!F40) ->  | AU34: =IF($A34="","",6+AT34+'tableau de scolarité'!$P$3) -> 
A35: =IF('tableau de scolarité'!A41="","",'tableau de scolarité'!A41) ->  | B35: =IF($A35="","",'tableau de scolarité'!B41) ->  | C35: =IF($A35="","",'tableau de scolarité'!C41) ->  | D35: =IF(A35="","",'tableau de scolarité'!G41) ->  | E35: =IF($A35="","",'tableau de scolarité'!D41) ->  | F35: =IF($A35="","",'tableau de scolarité'!F41) ->  | AU35: =IF($A35="","",6+AT35+'tableau de scolarité'!$P$3) -> 
A36: =IF('tableau de scolarité'!A42="","",'tableau de scolarité'!A42) ->  | B36: =IF($A36="","",'tableau de scolarité'!B42) ->  | C36: =IF($A36="","",'tableau de scolarité'!C42) ->  | D36: =IF(A36="","",'tableau de scolarité'!G42) ->  | E36: =IF($A36="","",'tableau de scolarité'!D42) ->  | F36: =IF($A36="","",'tableau de scolarité'!F42) ->  | AU36: =IF($A36="","",6+AT36+'tableau de scolarité'!$P$3) -> 
A37: =IF('tableau de scolarité'!A43="","",'tableau de scolarité'!A43) ->  | B37: =IF($A37="","",'tableau de scolarité'!B43) ->  | C37: =IF($A37="","",'tableau de scolarité'!C43) ->  | D37: =IF(A37="","",'tableau de scolarité'!G43) ->  | E37: =IF($A37="","",'tableau de scolarité'!D43) ->  | F37: =IF($A37="","",'tableau de scolarité'!F43) ->  | AU37: =IF($A37="","",6+AT37+'tableau de scolarité'!$P$3) -> 
A38: =IF('tableau de scolarité'!A44="","",'tableau de scolarité'!A44) ->  | B38: =IF($A38="","",'tableau de scolarité'!B44) ->  | C38: =IF($A38="","",'tableau de scolarité'!C44) ->  | D38: =IF(A38="","",'tableau de scolarité'!G44) ->  | E38: =IF($A38="","",'tableau de scolarité'!D44) ->  | F38: =IF($A38="","",'tableau de scolarité'!F44) ->  | AU38: =IF($A38="","",6+AT38+'tableau de scolarité'!$P$3) -> 
A39: =IF('tableau de scolarité'!A45="","",'tableau de scolarité'!A45) ->  | B39: =IF($A39="","",'tableau de scolarité'!B45) ->  | C39: =IF($A39="","",'tableau de scolarité'!C45) ->  | D39: =IF(A39="","",'tableau de scolarité'!G45) ->  | E39: =IF($A39="","",'tableau de scolarité'!D45) ->  | F39: =IF($A39="","",'tableau de scolarité'!F45) ->  | AU39: =IF($A39="","",6+AT39+'tableau de scolarité'!$P$3) -> 
A40: =IF('tableau de scolarité'!A46="","",'tableau de scolarité'!A46) ->  | B40: =IF($A40="","",'tableau de scolarité'!B46) ->  | C40: =IF($A40="","",'tableau de scolarité'!C46) ->  | D40: =IF(A40="","",'tableau de scolarité'!G46) ->  | E40: =IF($A40="","",'tableau de scolarité'!D46) ->  | F40: =IF($A40="","",'tableau de scolarité'!F46) ->  | AU40: =IF($A40="","",6+AT40+'tableau de scolarité'!$P$3) -> 
A41: =IF('tableau de scolarité'!A47="","",'tableau de scolarité'!A47) ->  | B41: =IF($A41="","",'tableau de scolarité'!B47) ->  | C41: =IF($A41="","",'tableau de scolarité'!C47) ->  | D41: =IF(A41="","",'tableau de scolarité'!G47) ->  | E41: =IF($A41="","",'tableau de scolarité'!D47) ->  | F41: =IF($A41="","",'tableau de scolarité'!F47) ->  | AU41: =IF($A41="","",6+AT41+'tableau de scolarité'!$P$3) -> 
A42: =IF('tableau de scolarité'!A48="","",'tableau de scolarité'!A48) ->  | B42: =IF($A42="","",'tableau de scolarité'!B48) ->  | C42: =IF($A42="","",'tableau de scolarité'!C48) ->  | D42: =IF(A42="","",'tableau de scolarité'!G48) ->  | E42: =IF($A42="","",'tableau de scolarité'!D48) ->  | F42: =IF($A42="","",'tableau de scolarité'!F48) ->  | AU42: =IF($A42="","",6+AT42+'tableau de scolarité'!$P$3) -> 
A43: =IF('tableau de scolarité'!A49="","",'tableau de scolarité'!A49) ->  | B43: =IF($A43="","",'tableau de scolarité'!B49) ->  | C43: =IF($A43="","",'tableau de scolarité'!C49) ->  | D43: =IF(A43="","",'tableau de scolarité'!G49) ->  | E43: =IF($A43="","",'tableau de scolarité'!D49) ->  | F43: =IF($A43="","",'tableau de scolarité'!F49) ->  | AU43: =IF($A43="","",6+AT43+'tableau de scolarité'!$P$3) -> 
A44: =IF('tableau de scolarité'!A50="","",'tableau de scolarité'!A50) ->  | B44: =IF($A44="","",'tableau de scolarité'!B50) ->  | C44: =IF($A44="","",'tableau de scolarité'!C50) ->  | D44: =IF(A44="","",'tableau de scolarité'!G50) ->  | E44: =IF($A44="","",'tableau de scolarité'!D50) ->  | F44: =IF($A44="","",'tableau de scolarité'!F50) ->  | AU44: =IF($A44="","",6+AT44+'tableau de scolarité'!$P$3) -> 
A45: =IF('tableau de scolarité'!A51="","",'tableau de scolarité'!A51) ->  | B45: =IF($A45="","",'tableau de scolarité'!B51) ->  | C45: =IF($A45="","",'tableau de scolarité'!C51) ->  | D45: =IF(A45="","",'tableau de scolarité'!G51) ->  | E45: =IF($A45="","",'tableau de scolarité'!D51) ->  | F45: =IF($A45="","",'tableau de scolarité'!F51) ->  | AU45: =IF($A45="","",6+AT45+'tableau de scolarité'!$P$3) -> 
A46: =IF('tableau de scolarité'!A52="","",'tableau de scolarité'!A52) ->  | B46: =IF($A46="","",'tableau de scolarité'!B52) ->  | C46: =IF($A46="","",'tableau de scolarité'!C52) ->  | D46: =IF(A46="","",'tableau de scolarité'!G52) ->  | E46: =IF($A46="","",'tableau de scolarité'!D52) ->  | F46: =IF($A46="","",'tableau de scolarité'!F52) ->  | AU46: =IF($A46="","",6+AT46+'tableau de scolarité'!$P$3) -> 
A47: =IF('tableau de scolarité'!A53="","",'tableau de scolarité'!A53) ->  | B47: =IF($A47="","",'tableau de scolarité'!B53) ->  | C47: =IF($A47="","",'tableau de scolarité'!C53) ->  | D47: =IF(A47="","",'tableau de scolarité'!G53) ->  | E47: =IF($A47="","",'tableau de scolarité'!D53) ->  | F47: =IF($A47="","",'tableau de scolarité'!F53) ->  | AU47: =IF($A47="","",6+AT47+'tableau de scolarité'!$P$3) -> 
A48: =IF('tableau de scolarité'!A54="","",'tableau de scolarité'!A54) ->  | B48: =IF($A48="","",'tableau de scolarité'!B54) ->  | C48: =IF($A48="","",'tableau de scolarité'!C54) ->  | D48: =IF(A48="","",'tableau de scolarité'!G54) ->  | E48: =IF($A48="","",'tableau de scolarité'!D54) ->  | F48: =IF($A48="","",'tableau de scolarité'!F54) ->  | AU48: =IF($A48="","",6+AT48+'tableau de scolarité'!$P$3) -> 
A49: =IF('tableau de scolarité'!A55="","",'tableau de scolarité'!A55) ->  | B49: =IF($A49="","",'tableau de scolarité'!B55) ->  | C49: =IF($A49="","",'tableau de scolarité'!C55) ->  | D49: =IF(A49="","",'tableau de scolarité'!G55) ->  | E49: =IF($A49="","",'tableau de scolarité'!D55) ->  | F49: =IF($A49="","",'tableau de scolarité'!F55) ->  | AU49: =IF($A49="","",6+AT49+'tableau de scolarité'!$P$3) -> 
A50: =IF('tableau de scolarité'!A56="","",'tableau de scolarité'!A56) ->  | B50: =IF($A50="","",'tableau de scolarité'!B56) ->  | C50: =IF($A50="","",'tableau de scolarité'!C56) ->  | D50: =IF(A50="","",'tableau de scolarité'!G56) ->  | E50: =IF($A50="","",'tableau de scolarité'!D56) ->  | F50: =IF($A50="","",'tableau de scolarité'!F56) ->  | AU50: =IF($A50="","",6+AT50+'tableau de scolarité'!$P$3) -> 
A51: =IF('tableau de scolarité'!A57="","",'tableau de scolarité'!A57) ->  | B51: =IF($A51="","",'tableau de scolarité'!B57) ->  | C51: =IF($A51="","",'tableau de scolarité'!C57) ->  | D51: =IF(A51="","",'tableau de scolarité'!G57) ->  | E51: =IF($A51="","",'tableau de scolarité'!D57) ->  | F51: =IF($A51="","",'tableau de scolarité'!F57) ->  | AU51: =IF($A51="","",6+AT51+'tableau de scolarité'!$P$3) -> 
A52: =IF('tableau de scolarité'!A58="","",'tableau de scolarité'!A58) ->  | B52: =IF($A52="","",'tableau de scolarité'!B58) ->  | C52: =IF($A52="","",'tableau de scolarité'!C58) ->  | D52: =IF(A52="","",'tableau de scolarité'!G58) ->  | E52: =IF($A52="","",'tableau de scolarité'!D58) ->  | F52: =IF($A52="","",'tableau de scolarité'!F58) ->  | AU52: =IF($A52="","",6+AT52+'tableau de scolarité'!$P$3) -> 
A53: =IF('tableau de scolarité'!A59="","",'tableau de scolarité'!A59) ->  | B53: =IF($A53="","",'tableau de scolarité'!B59) ->  | C53: =IF($A53="","",'tableau de scolarité'!C59) ->  | D53: =IF(A53="","",'tableau de scolarité'!G59) ->  | E53: =IF($A53="","",'tableau de scolarité'!D59) ->  | F53: =IF($A53="","",'tableau de scolarité'!F59) ->  | AU53: =IF($A53="","",6+AT53+'tableau de scolarité'!$P$3) -> 
A54: =IF('tableau de scolarité'!A60="","",'tableau de scolarité'!A60) ->  | B54: =IF($A54="","",'tableau de scolarité'!B60) ->  | C54: =IF($A54="","",'tableau de scolarité'!C60) ->  | D54: =IF(A54="","",'tableau de scolarité'!G60) ->  | E54: =IF($A54="","",'tableau de scolarité'!D60) ->  | F54: =IF($A54="","",'tableau de scolarité'!F60) ->  | AU54: =IF($A54="","",6+AT54+'tableau de scolarité'!$P$3) -> 
A55: =IF('tableau de scolarité'!A61="","",'tableau de scolarité'!A61) ->  | B55: =IF($A55="","",'tableau de scolarité'!B61) ->  | C55: =IF($A55="","",'tableau de scolarité'!C61) ->  | D55: =IF(A55="","",'tableau de scolarité'!G61) ->  | E55: =IF($A55="","",'tableau de scolarité'!D61) ->  | F55: =IF($A55="","",'tableau de scolarité'!F61) ->  | AU55: =IF($A55="","",6+AT55+'tableau de scolarité'!$P$3) -> 
A56: =IF('tableau de scolarité'!A62="","",'tableau de scolarité'!A62) ->  | B56: =IF($A56="","",'tableau de scolarité'!B62) ->  | C56: =IF($A56="","",'tableau de scolarité'!C62) ->  | D56: =IF(A56="","",'tableau de scolarité'!G62) ->  | E56: =IF($A56="","",'tableau de scolarité'!D62) ->  | F56: =IF($A56="","",'tableau de scolarité'!F62) ->  | AU56: =IF($A56="","",6+AT56+'tableau de scolarité'!$P$3) -> 
A57: =IF('tableau de scolarité'!A63="","",'tableau de scolarité'!A63) ->  | B57: =IF($A57="","",'tableau de scolarité'!B63) ->  | C57: =IF($A57="","",'tableau de scolarité'!C63) ->  | D57: =IF(A57="","",'tableau de scolarité'!G63) ->  | E57: =IF($A57="","",'tableau de scolarité'!D63) ->  | F57: =IF($A57="","",'tableau de scolarité'!F63) ->  | AU57: =IF($A57="","",6+AT57+'tableau de scolarité'!$P$3) -> 
A58: =IF('tableau de scolarité'!A64="","",'tableau de scolarité'!A64) ->  | B58: =IF($A58="","",'tableau de scolarité'!B64) ->  | C58: =IF($A58="","",'tableau de scolarité'!C64) ->  | D58: =IF(A58="","",'tableau de scolarité'!G64) ->  | E58: =IF($A58="","",'tableau de scolarité'!D64) ->  | F58: =IF($A58="","",'tableau de scolarité'!F64) ->  | AU58: =IF($A58="","",6+AT58+'tableau de scolarité'!$P$3) -> 
A59: =IF('tableau de scolarité'!A65="","",'tableau de scolarité'!A65) ->  | B59: =IF($A59="","",'tableau de scolarité'!B65) ->  | C59: =IF($A59="","",'tableau de scolarité'!C65) ->  | D59: =IF(A59="","",'tableau de scolarité'!G65) ->  | E59: =IF($A59="","",'tableau de scolarité'!D65) ->  | F59: =IF($A59="","",'tableau de scolarité'!F65) ->  | AU59: =IF($A59="","",6+AT59+'tableau de scolarité'!$P$3) -> 

Sheet bulletins_tre1
A1: ='tableau de scolarité'!$A$1 -> المملكة المغربية | K1: الموسم الدراسي | N1: =IF($N$7="","",'tableau de scolarité'!$M$1) -> 2019_2018 | Z1: uuu
A2: ='tableau de scolarité'!$A$2 -> وزارة التربية الوطنية و التكوين المهني | K2: الاسم و النسب | N2: =IF($N$7="","",VLOOKUP(N5,base1,3,0)) -> رضوان
A3: ='tableau de scolarité'!$A$3 -> الاكاديمية الجهوية للتربية و التكوين | K3: الرقم الوطني | N3: 7
A4: ='tableau de scolarité'!$A$4 -> جهة: اسم الجهة هنا | K4: رقم التسجيل | N4: =IF($N$7="","",VLOOKUP(N5,base1,6,0)) -> 408
A5: ='tableau de scolarité'!$A$5 -> مديرية: اسم المديرية هنا | K5: رقم ت في القسم | N5: 1
A6: ='tableau de scolarité'!$A$6 -> المؤسسة: اسم المؤسسة هنا | K6: القسم | N6: =IF($N$7="","",'tableau de scolarité'!$M$3) -> الاول
K7: عدد التلاميذ | N7: =IF('tableau de scolarité'!$O$12=0,"",'tableau de scolarité'!$O$12) -> 24
B9: بطاقة المراقبة المستمرة
C12: مدرسة | I12: =IF($N$7="","",'tableau de scolarité'!A6) -> المؤسسة: اسم المؤسسة هنا
C13: الاسم والنسب | I13: =IF($N$7="","",VLOOKUP(N5,base1,3,0)) -> رضوان
B15: نتائج الأسدوس الأول
A17: الوحدات | D17: الانشطة | G17: الدورة الأولى | M17: ملاحظات
G18: النقطة1 | I18: النقطة2 | L18: المعدل
A19: اللغة العربية | D19: القراءة | G19: =IF($N$7="","",VLOOKUP(N5,base1,7,0)) -> 4 | I19: =IF($N$7="","",VLOOKUP(N5,base1,8,0)) -> 3 | L19: =IF($N$7="","",AVERAGE(G19:J19)) -> 3.5 | M19: =IF($L$24="","",IF(L24<2," ضعيف جدا",IF(L24<4,"ضعيف",IF(L24<5,"ناقص",IF(L24<6,"متوسط",IF(L24<7,"لابأس به",IF(L24<8,"مستحسن",IF(L24<9,"حسن","حسن جدا")))))))) -> ضعيف
D20: الإملاء | G20: =IF($N$7="","",VLOOKUP(N5,base1,10,0)) -> 4 | I20: =IF($N$7="","",VLOOKUP(N5,base1,11,0)) -> 3 | L20: =IF($N$7="","",AVERAGE(G20:J20)) -> 3.5
D21: الخط | G21: =IF($N$7="","",VLOOKUP(N5,base1,13,0)) -> 4 | I21: =IF($N$7="","",VLOOKUP(N5,base1,14,0)) -> 4 | L21: =IF($N$7="","",AVERAGE(G21:J21)) -> 4
D22: التعبير الشفوي | G22: =IF($N$7="","",VLOOKUP(N5,base1,16,0)) -> 4 | I22: =IF($N$7="","",VLOOKUP(N5,base1,17,0)) -> 3 | L22: =IF($N$7="","",AVERAGE(G22:J22)) -> 3.5
D23: النقل | G23: =IF($N$7="","",VLOOKUP(N5,base1,19,0)) -> 4 | I23: =IF($N$7="","",VLOOKUP(N5,base1,20,0)) -> 4 | L23: =IF($N$7="","",AVERAGE(G23:J23)) -> 4
D24: معدل الوحدة | L24: =IF($N$7="","",AVERAGE(L19:L23)) -> 3.7
A25: اللغة | D25: الأمازيغية | G25: =IF($N$7="","",IF(VLOOKUP(N5,base1,23,0)="","",VLOOKUP(N5,base1,23,0))) ->  | I25: =IF($N$7="","",IF(VLOOKUP(N5,base1,24,0)="","",VLOOKUP(N5,base1,24,0))) ->  | L25: =IF(OR($N$7="",G25="",I25=""),"",AVERAGE(D25:I25)) ->  | M25: =IF($N$7="","",IF(L26="","الأمازيغية غير معممة",IF(L26<2," ضعيف جدا",IF(L26<4,"ضعيف",IF(L26<5,"ناقص",IF(L26<6,"متوسط",IF(L26<7,"لابأس به",IF(L26<8,"مستحسن",IF(L26<9,"حسن","حسن جدا"))))))))) -> الأمازيغية غير معممة
A26: الأمازيغية | D26: معدل الوحدة | L26: =IF($N$7="","",L25) -> 
A27: التربية | D27: الفرض 1 | G27: =IF($N$7="","",VLOOKUP(N5,base1,26,0)) -> 4 | I27: =VLOOKUP($N$5,base1,29,0) -> 4 | L27: =IF($N$7="","",G27) -> 4 | M27: =IF($L$31="","",IF(L31<2," ضعيف جدا",IF(L31<4,"ضعيف",IF(L31<5,"ناقص",IF(L31<6,"متوسط",IF(L31<7,"لابأس به",IF(L31<8,"مستحسن",IF(L31<9,"حسن","حسن جدا")))))))) -> ضعيف
D28: الفرض 2 | G28: =IF($N$7="","",VLOOKUP(N5,base1,27,0)) -> 3 | I28: =VLOOKUP($N$5,base1,29,0) -> 4 | L28: =IF($N$7="","",G28) -> 3
A29: الإسلامية | D29: الفرض 3 | G29: =IF($N$7="","",VLOOKUP(N5,base1,28,0)) -> 3.5 | I29: =VLOOKUP($N$5,base1,32,0) -> 4 | L29: =IF($N$7="","",G29) -> 3.5
D30: أنشطة | G30: =IF($N$7="","",VLOOKUP(N5,base1,29,0)) -> 4 | I30: =VLOOKUP($N$5,base1,32,0) -> 4 | L30: =IF($N$7="","",G30) -> 4
D31: معدل الوحدة | L31: =IF($N$7="","",AVERAGE(L27:L30)) -> 3.625
A32: النشاط | D32: النشاط العلمي | G32: =IF($N$7="","",VLOOKUP(N5,base1,31,0)) -> 4 | I32: =IF($N$7="","",VLOOKUP(N5,base1,32,0)) -> 4 | L32: =IF(OR($N$7="",G32="",I32=""),"",AVERAGE(D32:I32)) -> 4 | M32: =IF($L$33="","",IF(L33<2," ضعيف جدا",IF(L33<4,"ضعيف",IF(L33<5,"ناقص",IF(L33<6,"متوسط",IF(L33<7,"لابأس به",IF(L33<8,"مستحسن",IF(L33<9,"حسن","حسن جدا")))))))) -> ناقص
A33: العلمي | D33: معدل الوحدة | L33: =IF($N$7="","",L32) -> 4
A34: التربية | D34: التربية الفنية | G34: =IF($N$7="","",VLOOKUP(N5,base1,34,0)) -> 4 | I34: =IF($N$7="","",VLOOKUP(N5,base1,35,0)) -> 6.5 | L34: =IF(OR($N$7="",G34="",I34=""),"",AVERAGE(D34:I34)) -> 5.25 | M34: =IF($L$35="","",IF(L35<2," ضعيف جدا",IF(L35<4,"ضعيف",IF(L35<5,"ناقص",IF(L35<6,"متوسط",IF(L35<7,"لابأس به",IF(L35<8,"مستحسن",IF(L35<9,"حسن","حسن جدا")))))))) -> متوسط
A35: الفنية | D35: معدل الوحدة | L35: =IF($N$7="","",L34) -> 5.25
A36: الرياضيات | D36: الرياضيات | G36: =IF($N$7="","",VLOOKUP(N5,base1,37,0)) -> 3 | I36: =IF($N$7="","",VLOOKUP(N5,base1,38,0)) -> 3.5 | L36: =IF(OR($N$7="",G36="",I36=""),"",AVERAGE(D36:I36)) -> 3.25 | M36: =IF($L$37="","",IF(L37<2," ضعيف جدا",IF(L37<4,"ضعيف",IF(L37<5,"ناقص",IF(L37<6,"متوسط",IF(L37<7,"لابأس به",IF(L37<8,"مستحسن",IF(L37<9,"حسن","حسن جدا")))))))) -> ضعيف
D37: معدل الوحدة | L37: =IF($N$7="","",L36) -> 3.25
A38: الفرنسية | D38: الفرنسية | G38: =IF($N$7="","",IF(VLOOKUP(N5,base1,40,0)="","",VLOOKUP(N5,base1,40,0))) -> 4 | I38: =IF($N$7="","",IF(VLOOKUP(N5,base1,41,0)="","",VLOOKUP(N5,base1,41,0))) -> 3.5 | L38: =IF(OR($N$7="",G38="",I38=""),"",AVERAGE(D38:I38)) -> 3.75 | M38: =IF($L$39="","",IF(L39<2," ضعيف جدا",IF(L39<4,"ضعيف",IF(L39<5,"ناقص",IF(L39<6,"متوسط",IF(L39<7,"لابأس به",IF(L39<8,"مستحسن",IF(L39<9,"حسن","حسن جدا")))))))) -> ضعيف
D39: معدل الوحدة | L39: =IF($N$7="","",L38) -> 3.75
A40: التربية | D40: التربية البدنية | G40: =IF($N$7="","",IF(VLOOKUP(N5,base1,43,0)="","",VLOOKUP(N5,base1,43,0))) -> 6.25 | I40: =IF($N$7="","",IF(VLOOKUP(N5,base1,44,0)="","",VLOOKUP(N5,base1,44,0))) -> 6.75 | L40: =IF(OR($N$7="",G40="",I40=""),"",AVERAGE(D40:I40)) -> 6.5 | M40: =IF($L$41="","معفى من التربية البدنية",IF(L41<2," ضعيف جدا",IF(L41<4,"ضعيف",IF(L41<5,"ناقص",IF(L41<6,"متوسط",IF(L41<7,"لابأس به",IF(L41<8,"مستحسن",IF(L41<9,"حسن","حسن جدا")))))))) -> لابأس به
A41: البدنية | D41: معدل الوحدة | L41: =IF($N$7="","",L40) -> 6.5
A43: مجموع معدل الوحدات | E43: =IF($N$7="","",VLOOKUP(N5,base1,48,0)) -> 30.16071429 | H43: الميزة | L43: خاتم و توقيع رئيس المؤسسة
A44: المعدل الدوري | E44: =IF($N$7="","",VLOOKUP(N5,base1,49,0)) -> 4.308673469 | H44: =IF($N$7="","",VLOOKUP(N5,base1,51,0)) -> دون المتوسط
A45: الرتبة | E45: =IF($N$7="","",VLOOKUP(N5,base1,50,0)) -> 22
